Cogmind - Beta 16 @@@ ROGUE MODE // 2025.12.04 @ 14:34:31 Player: Sir Cheese Result: Destroyed by BF-BP6(R) with Subdweller Beam Cannon Performance ------------- Evolutions (0) 0 Regions Visited (3) 600 Robots Destroyed (22) 110 Value Destroyed (299) 299 Prototype IDs (0) 0 Alien Tech Used (0) 0 Bonus (0) 0 TOTAL SCORE: 1009 Bonus ------- None Cogmind --------- Core Integrity 0/250 Matter 262/300 Energy 247/250 System Corruption 0% Temperature Cool (9) Movement Walking (190) Ox1 Location -10/Subcaves Parts ------- > --- POWER (1) -------- Ion Engine > --- PROPULSION (2) --- Aluminum Leg Aluminum Leg > --- UTILITY (2) ------ Medium Storage Unit Sensor Array > --- WEAPON (2) ------- Medium Laser Light Cannon > --- INVENTORY (10) --- Light Ion Engine Small Storage Unit Weight Redist. System Improved Terrain Scanner ECM Suite Hacking Suite Medium Laser Light Assault Rifle Mining Laser Peak State ------------ > --- POWER ------------ Ion Engine > --- PROPULSION ------- Aluminum Leg Aluminum Leg > --- UTILITY ---------- Small Storage Unit Seismic Detector > --- WEAPON ----------- Light Assault Rifle Light Assault Rifle > --- INVENTORY -------- Ion Engine Light Treads Light Treads Improved Terrain Scanner Medium Laser Medium Laser Mining Laser Welding Torch [Rating: 8] Favorites ----------- Power Ion Engine Engine Ion Engine Propulsion Aluminum Leg Treads Light Treads Leg Aluminum Leg Utility Medium Storage Unit Device Sensor Array Storage Medium Storage Unit Processor Targeting Computer Weapon Medium Laser Energy Gun Medium Laser Ballistic Gun Light Assault Rifle Ballistic Cannon Light Cannon Special Weapon Mining Laser Build | -11 -10 -10 -10 ------- Run | Yrd Mat Min Sub Slots Evolved . | . . . . Power . | . . . . Propulsion . | . . . . Utility . | . . . . Weapon . | . . . . Parts Attached 17 | 7 8 1 1 Power 2 | 1 1 . . Engine 2 | 1 1 . . Core . | . . . . Reactor . | . . . . Propulsion 4 | 2 2 . . Treads 2 | 2 . . . Leg 2 | . 2 . . Wheel . | . . . . Hover . | . . . . Flight . | . . . . Utility 5 | 2 2 1 . Device 2 | 1 . 1 . Storage 2 | 1 1 . . Processor 1 | . 1 . . Hackware . | . . . . Protection . | . . . . Artifact . | . . . . Weapon 6 | 2 3 . 1 Energy Gun 1 | . 1 . . Energy Cannon . | . . . . Ballistic Gun 3 | 2 1 . . Ballistic Cannon 1 | . . . 1 Launcher . | . . . . Special Weapon 1 | . 1 . . Impact Weapon . | . . . . Slashing Weapon . | . . . . Piercing Weapon . | . . . . Special Melee Weapon . | . . . . Unidentified Prototypes . | . . . . Parts Lost 1 | . 1 . . Power 1 | . 1 . . Propulsion . | . . . . Utility . | . . . . Weapon . | . . . . Highest Loss Streak 1 | . 1 . . To Critical Strikes . | . . . . Average Backups 8 | 2 7 9 9 Power . | . . 1 1 Propulsion . | 1 1 . . Utility 3 | . 2 5 5 Weapon 2 | . 1 3 3 Tool/Special . | . . . . Unused Backups 9 | 1 2 . 6 Power 1 | . . . 1 Propulsion . | . . . . Utility 6 | 1 1 . 4 Weapon 1 | . . . 1 Tool/Special 1 | . 1 . . Average Slot Usage (%) 99 | . 99 100 100 Engine 13 | . 13 14 14 Treads 5 | . 12 . . Leg 22 | . 15 28 28 Device 10 | . 5 13 14 Storage 14 | . 14 14 14 Processor 3 | . 8 . . Energy Gun 12 | . 11 14 14 Ballistic Gun 11 | . 16 10 . Special Weapon 3 | . . 3 12 Peak Build Rating 8 | 7 8 8 8 Average Rating 7 | 5 7 8 8 On Entrance 5 | . 7 8 8 Avg Prop Armor Cover (%) . | . . . . Naked Turns . | . . . . Heaviest Build 21 | 13 18 19 21 Greatest Support 40 | 40 40 20 20 Greatest Overweight (x) 3 | 3 . . 1 Average Overweight (x) . | . . . . Largest Inventory Capacity 10 | 8 10 10 10 Average Capacity 9 | 7 8 10 10 Most Carried 10 | 7 10 10 9 Average Carried 8 | 3 7 9 9 Final Capacity 10 | 8 10 10 10 Final Carried 10 | 5 10 9 9 Class Distribution -------------------- 100% | Mutant Dominant Class ---------------- Mutant | -10/Materials Mutant | -10/Mines Mutant | -10/Subcaves Resources | -11 -10 -10 -10 ----------- Run | Yrd Mat Min Sub Matter Collected 511 | 270 151 80 10 Remotely . | . . . . Salvage Created 556 | 149 352 55 . Parts 50 | 14 30 6 . Haulers Intercepted 1 | . 1 . . Recyclers Shooed 1 | . 1 . . Parts Field Recycled . | . . . . Retrieved Matter . | . . . . Parts Self-Destructed . | . . . . Prevented . | . . . . Parts Restored . | . . . . Kills | -11 -10 -10 -10 ------- Run | Yrd Mat Min Sub Combat Hostiles Destroyed 12 | . 9 3 . Guns 11 | . 8 3 . Classes Destroyed 8 | 2 6 . . Worker 1 | . 1 . . Tunneler 3 | 3 . . . Hauler 1 | . 1 . . Recycler 1 | 1 . . . Operator 1 | . 1 . . Watcher 3 | . 3 . . Swarmer 9 | . 6 3 . Grunt 3 | . 3 . . Best Kill Streak 4 | 3 4 3 . Combat Bots Only 3 | . 3 3 . Max Kills in Single Turn 1 | 1 1 1 . Gunslinging . | . . . . Exploded . | . . . . Melee . | . . . . Uniques/NPCs Destroyed . | . . . . Combat | -11 -10 -10 -10 -------- Run | Yrd Mat Min Sub Hostile Shots Fired 97 | . 67 20 10 Missed 32 | . 25 5 2 Hits 65 | . 42 15 8 Projectile 65 | . 42 15 8 Critical Strikes 2 | . 2 . . Damage Taken 764 | . 418 117 229 Core 276 | . 145 44 87 Absorbed by Shields . | . . . . Core Remaining (%) 100 | 100 . . . Volleys Fired 91 | 11 40 21 19 Largest 2 | 2 2 2 2 Hottest 150 | 40 100 150 100 Shots Fired 158 | 22 78 32 26 Gun 126 | 22 76 21 7 Cannon 7 | . . . 7 Launcher . | . . . . Special 25 | . 2 11 12 Kinetic 77 | 22 38 10 7 Thermal 81 | . 40 22 19 Explosive . | . . . . Electromagnetic . | . . . . Robot Hit Streak 8 | 6 8 3 7 Robot Miss Streak 5 | 1 2 5 2 Penetration Max . | . . . . Secondary Targets 5 | . 4 1 . Max Gunslinging Chain 1 | . 1 1 . Shots Hit Robots 85 | 15 48 11 11 Core Hits 36 | 8 23 4 1 Critical Kills 1 | . . 1 . Critical Parts Destroyed . | . . . . Critical Strikes 5 | . 3 1 1 Burn 4 | . 3 . 1 Destroy 1 | . . 1 . Melee Attacks . | . . . . Impact . | . . . . Slashing . | . . . . Piercing . | . . . . Sneak Attacks . | . . . . Combat Hostiles . | . . . . Follow-up Attacks . | . . . . Damage Inflicted 987 | 146 548 119 174 Guns 847 | 146 545 95 61 Cannons 113 | . . . 113 Explosions . | . . . . Melee . | . . . . Ramming 3 | . 3 . . Kinetic 473 | 146 170 44 113 Thermal 511 | . 375 75 61 Explosive . | . . . . Electromagnetic . | . . . . Impact . | . . . . Slashing . | . . . . Piercing . | . . . . Highest Corruption . | . . . . Average Corruption . | . . . . Corruption Purged . | . . . . Corruption Blocked . | . . . . Overload Shots . | . . . . Overflow Damage . | . . . . Projectiles . | . . . . Explosions . | . . . . Melee . | . . . . Knockbacks 2 | . . . 2 Impact . | . . . . Kinetic 2 | . . . 2 Secondary . | . . . . Self-Inflicted Damage . | . . . . Shots . | . . . . Rammed . | . . . . Targets Rammed 1 | . 1 . . Kicked 1 | . 1 . . Crushed . | . . . . Highest Temperature 144 | . 144 130 . Average Temperature 52 | . 53 51 . Received Heat Transfer 192 | . 120 . 72 Siege Activations . | . . . . Martial Activations . | . . . . Shielding Activations . | . . . . Robots Disrupted . | . . . . Combat Hostiles . | . . . . Robots Corrupted . | . . . . Combat Hostiles . | . . . . Parts Fried . | . . . . Impact Corruptions . | . . . . Robots Melted 1 | . 1 . . Combat Hostiles 1 | . 1 . . Parts Melted 2 | . 1 1 . Heat Transferred 1789 | . 1332 198 259 Parts Sabotaged . | . . . . Parts Stolen . | . . . . Parts Stripped . | . . . . Power Chain Reactions . | . . . . Alert | -11 -10 -10 -10 ------- Run | Yrd Mat Min Sub Maximum Alert Level . | . . . . Low Security (%) 100 | 100 100 100 . Level 1 . | . . . . Level 2 . | . . . . Level 3 . | . . . . Level 4 . | . . . . Level 5 . | . . . . High Security . | . . . . Max Security . | . . . . Peak Influence 154 | 10 154 60 . Initial . | . . . . Average 26 | 1 50 5 . Influence Increases 423 | 20 326 77 . Destroy 0b10 Robot/C 240 | . 180 60 . Destroy 0b10 Robot/NC 50 | 20 30 . . Destroy Leader 58 | . 48 10 . Successful Hack 51 | . 51 . . Destroy Structure 9 | . 2 7 . Lose Combat Pursuer 15 | . 15 . . Influence Decreases 423 | 20 326 76 1 Entered New Map 1 | . . . 1 Time Decay 309 | 20 213 76 . Lost Part 10 | . 10 . . Purge Threat 103 | . 103 . . Squads Dispatched 1 | . 1 . . Investigation . | . . . . Extermination . | . . . . Reinforcement 1 | . 1 . . Assault . | . . . . Garrison . | . . . . Intercept . | . . . . Searches Triggered . | . . . . Construction Impeded . | . . . . Haulers Reinforced . | . . . . Active Scanning Responses . | . . . . Cargo Convoy Interrupts . | . . . . Stealth | -11 -10 -10 -10 --------- Run | Yrd Mat Min Sub Distress Signals . | . . . . Communications Jammed . | . . . . Distress Signals . | . . . . Times Spotted 18 | . 14 3 1 Peak Tracking Total 4 | . 4 3 1 Tactical Retreats 1 | . 1 . . Traps | -11 -10 -10 -10 ------- Run | Yrd Mat Min Sub Traps Triggered . | . . . . Indirectly . | . . . . Trap Hack Attempts . | . . . . Triggered . | . . . . Disarmed 4 | . 4 . . Reprogrammed . | . . . . Reused . | . . . . Traps Extracted . | . . . . Installed 4 | . . 4 . Triggered . | . . . . Machines | -11 -10 -10 -10 ---------- Run | Yrd Mat Min Sub Machines Disabled . | . . . . Max in Single Turn . | . . . . Machines Repaired . | . . . . Machines Dismantled . | . . . . Machines Sabotaged . | . . . . Overloaded Fab Kills . | . . . . Hacking | -11 -10 -10 -10 --------- Run | Yrd Mat Min Sub Machines Accessed 6 | . 6 . . Terminals 6 | . 6 . . Fabricators . | . . . . Repair Stations . | . . . . Recycling Units . | . . . . Scanalyzers . | . . . . Garrison Access . | . . . . Total Hacks 25 | . 25 . . Successful 13 | . 13 . . Failed 12 | . 12 . . Catastrophic 3 | . 3 . . Database Lockouts . | . . . . Manual 13 | . 13 . . Terminals 25 | . 25 . . Fabricators . | . . . . Repair Stations . | . . . . Recycling Units . | . . . . Scanalyzers . | . . . . Garrison Access . | . . . . Terminal Hacks 10 | . 10 . . Branch Access Points 1 | . 1 . . Unreport Threat 2 | . 2 . . Locate Traps 4 | . 4 . . Disarm Traps 1 | . 1 . . Dispatch Records 1 | . 1 . . Recall Investigation 1 | . 1 . . Fabricator Hacks . | . . . . Repair Station Hacks . | . . . . Recycling Unit Hacks . | . . . . Scanalyzer . | . . . . Garrison Access Hacks . | . . . . Unauthorized Hacks 3 | . 3 . . Terminals 3 | . 3 . . Assimilate 1 | . 1 . . Botnet 1 | . 1 . . Operators 1 | . 1 . . Fabricators . | . . . . Repair Stations . | . . . . Recycling Units . | . . . . Scanalyzers . | . . . . Garrison Access . | . . . . Data Cores Recovered . | . . . . Used . | . . . . Hacking Detections 6 | . 6 . . Full Trace Events . | . . . . Feedback Events . | . . . . Feedback Blocked . | . . . . Robot Schematics Acquired . | . . . . Robots Built . | . . . . Authchips . | . . . . Time . | . . . . Total Robot Build Rating . | . . . . Part Schematics Acquired . | . . . . Parts Built . | . . . . Authchips . | . . . . Time . | . . . . Total Part Build Rating . | . . . . Part Studies Acquired . | . . . . Parts Repaired . | . . . . Time . | . . . . Parts Recycled . | . . . . Recycled Matter . | . . . . Retrieved Matter . | . . . . Retrieved Components . | . . . . Parts Scanalyzed . | . . . . Part Schematics Acquired . | . . . . Parts Damaged . | . . . . Bothacking | -11 -10 -10 -10 ------------ Run | Yrd Mat Min Sub Used RIF Installer . | . . . . Robots Hacked . | . . . . Non-combat . | . . . . Combat . | . . . . Robot Hacks Applied . | . . . . Relay Couplers Released . | . . . . Fabnet Peak Effective % . | . . . . Robots Rewired . | . . . . Allies Hacked . | . . . . Hacks Repelled . | . . . . Allies | -11 -10 -10 -10 -------- Run | Yrd Mat Min Sub Total Allies . | . . . . Largest Group . | . . . . Highest-Rated Group . | . . . . Highest-Rated Ally . | . . . . Total Orders . | . . . . Ally Attacks . | . . . . Total Damage . | . . . . Kills . | . . . . Allies Corrupted . | . . . . Allies Melted . | . . . . Intel | -11 -10 -10 -10 ------- Run | Yrd Mat Min Sub Active Infowar (turns) 1418 | 15 298 819 286 Sensors 1105 | . . 819 286 Seismic 313 | 15 298 . . Robot Analysis Total . | . . . . Derelict Logs Recovered 1 | . . 1 . Drone Launches . | . . . . Drone Recoveries . | . . . . Exploration | -11 -10 -10 -10 ------------- Run | Yrd Mat Min Sub Turns Passed 2077 | 124 842 825 286 Spaces Moved 1290 | 50 488 575 177 Core 7 | 7 . . . Treads 220 | 43 177 . . Legs 1063 | . 311 575 177 Wheels . | . . . . Hover . | . . . . Flight . | . . . . Fastest Speed 50 | 50 120 120 120 Average Speed 127 | 158 134 120 122 Slowest Speed 200 | 200 160 120 190 Overloaded Moves . | . . . . Propulsion Burnouts . | . . . . Robots Hopped . | . . . . Potential Cave-ins 4 | . . 4 . Cave-ins Triggered . | . . . . Exploration Rate (%) 50 | 5 90 90 15 Regions Visited 3 Branch Regions 2 Pre-discovered Areas 1 | . . 1 . Known Exits Taken 1 | . 1 . . Unknown Exits Taken 2 | 1 . 1 . Scrap Searched 2 | . . 2 . Spaces Dug 11 | . 1 10 . Terrain Destroyed 11 | . 1 10 . Melee . | . . . . Projectile 11 | . 1 10 . AOE . | . . . . Terrain Rammed . | . . . . Walls Destroyed . | . . . . Machines Disabled . | . . . . Actions | -11 -10 -10 -10 --------- Run | Yrd Mat Min Sub Total 1525 | 75 597 656 197 Wait 87 | . 37 50 . Move 1287 | 49 487 574 177 Hop . | . . . . Pick Up 20 | 7 12 1 . Fast Attach 6 | 6 . . . Attach 2 | 1 1 . . Detach . | . . . . Swap 18 | . 12 5 1 Drop 9 | 1 7 1 . Fire 91 | 11 40 21 19 Melee . | . . . . Ram . | . . . . Kick 1 | . 1 . . Crush . | . . . . Escape Stasis . | . . . . Rewire . | . . . . Trap 4 | . . 4 . Miscellaneous . | . . . . Route ------- -11/Scrapyard -10/Materials (discovered 4 exits: [*Mat x2] / *Min / [*Sub]) -10/Mines (discovered 2 exits: [*Mat] / [*Sub]) -10/Subcaves History --------- Turn | Location | Event 13 | -11/Scrapyard | Discovered new exit (range 16) 125 | -11/Scrapyard | Entered Materials 175 | -10/Materials | Identified exit to Mines 252 | -10/Materials | Discovered new exit (range 16) 307 | -10/Materials | Build established: Mutant 466 | -10/Materials | Discovered new exit (range 12) 577 | -10/Materials | Core integrity fell below 50% 625 | -10/Materials | Discovered new exit (range 16) 825 | -10/Materials | Derelicts attacked the area 967 | -10/Materials | Entered Mines 973 | -10/Mines | Assembled infested the area 1078 | -10/Mines | Learned Materials stockpile data 1224 | -10/Mines | Found a hidden stash of uninstalled traps 1257 | -10/Mines | Discovered new exit (range 10) 1396 | -10/Mines | Learned location of Storage (-8) 1730 | -10/Mines | Discovered new exit (range 6) 1792 | -10/Mines | Entered Subcaves 1833 | -10/Subcaves | A swath of the cavern ceiling suddenly collapsed 2066 | -10/Subcaves | Core integrity fell below 20% 2078 | -10/Subcaves | Destroyed by BF-BP6(R) with Subdweller Beam Cannon Last Messages --------------- T-07 Excavator is excavating. U-05 Engineer lays Concrete. U-05 Engineer builds a Wall. T-07 Excavator is excavating. U-05 Engineer lays Concrete. T-07 Excavator is excavating. U-05 Engineer builds a Wall. K-01 Serf collects debris. EXIT=FOUND U-05 Engineer builds a Wall. LOCATION=UNKNOWN AMBIENT_HEAT=-10 GOAL=ESCAPE A swath of the cavern ceiling suddenly collapses. Acquired 7 matter. 9K-8JV(u) builds Twisted Machinery. Acquired 3 matter. BF-BP6(R) knocked back. BF-BP6(R) suffers critical hit (Burn). Map ----- +----------------------------------------------------+ | ?????????????????????????????????????????????????? | | ?????????????????????????????????????????????????? | | ?????????????????????????????????????????????????? | | ???????????????????? ???????????????????????????? | | ??????????????????# ??????????????????????????? | | ??????????????????# ??????????????????????????? | | ?????????????????## ??????????????????????????? | | ?????????????????# ??????????????????????????? | | ?????????????????# ??????????????????????????? | | ?????????????# ??# ?????????????????????????? | | ?????????????# ??# ?????????????????????????? | | ?????????????# ## ?????????????????????????? | | ?????????????# ??????????####???????????? | | ??????????????# ??????????#" #???????????? | | ???????????????# ###??????##""##??????????? | | ????????????????# ######## " ##?????????? | | ??????????????????# ## ###???????? | | ???????????????????# #???????? | | ???????????????????# ##??????? | | ???????????????????## ## #??????? | | ???????????????????## #### ##??????? | | ???????????????# ####"" ##???????? | | ????????????# ### ;# "" ## #???????? | | ???????????? #### "" ### #???????? | | ???????????? ## ## """##### #???????? | | ???????????? ## R @ ""##?## ##???????? | | ????????????? ?##% # ###### ##????????? | | ????????????? ??# ?########?# #######? # | | ?????????????""???# ???????????## "" # # # # | | ??????????????????# ???????????#### """" | | ????? ????????????## ?????????##" # """" % | | ????? #?????????????# ???????##" "###????? | | ????? ????????????## #??????# "? % ##??????? | | ????? ???????????## ####### "#### #???????? | | ????? ???????????#" ##"### ""#?#####???????? | | ????? ??????????##" # ""#?????????????? | | ????? #??????????# # ##?????????????? | | ???## ??????????# #### #??????????????? | | ???# ##?????????## ???### ##??????????????? | | ???? #???????????????# ###????????????? | | ???? ???????????????# ###??????????? | | ???## ????????????????# % #??????????? | | ???# #????????????##### % #??????????? | | ??## ##???????###?# # # ### ?? #???? | | ?## ##????? """""" #???? | | ?# ##???? """" #???? | | ## #???? # # # """ % ""???? | | # ## ##???? ###?### "" ""??? | | #####????# ##???## ### ### ""??? | | ##?????? ##???# ### ##???? "???? | +----------------------------------------------------+ Best States ------------- Heat Dissipation 25 Energy Generation 10 Energy Capacity 250 Matter Stores 300 Matter Capacity 300 Sight Range 16 Robot Scan Range 14 Terrain Scan Density 10 Evasion (%) 55 Targeting Accuracy 5 Recoil Reduction 2 Item Schematics ----------------- None Robot Schematics ------------------ None Fabricated ------------ Nothing Repaired ---------- Nothing Studied --------- None Alien Tech Used ----------------- None Achievements -------------- None Challenges ------------ None Game ------ Seed DisruptionRefineryDatajack Manual? 0 Play Time 00:19:35 Cumulative 39.6 hours Start 2025.12.04 @ 14:16:34 End 2025.12.04 @ 14:34:31 Sessions 1 Manual Loads 0 Difficulty Rogue Special Mode None Game No. 40 Rogue 12 Adventurer 21 Explorer 7 Win Type - Total 1 Types 1/0/0/0/0/0/0/0/0/0 Lore% 41 Gallery% 39 Achievement% 32 Wizard Run 0 Options --------- Layout 1 ASCII 0 Keyboard 0 Movement Mouse Keybinds 0 Fullscreen 1 Font 48/Smallcaps Map View 50x35 Zoom Use 0% Tactical HUD 0 Map Filters NONE Filters NONE Steam 1 RUN: e25832d1-85f9-4569-9dd3-b73e9eed8ff7